fUSD/lending_fUSD_20260702
["ID","MTS","AMOUNT","RATE_DAILY","PERIOD"]
[426863172,1782966642000,-350.0,0.00028904,12]
[426863171,1782966642000,-230.0011,0.0002886,2]
[426863169,1782966642000,-151.0,0.00028793,5]
[426863168,1782966642000,-158.33,0.00028691,30]
[426863170,1782966642000,-206.41653604,0.00028793,5]
[426863167,1782966642000,-167.21,0.0002858,2]
[426863174,1782966642000,-973.51241997,0.00028973,2]
[426863173,1782966642000,-187.89359893,0.00028971,2]
[426863175,1782966642000,-5050.89563193,0.00029,2]
[426863177,1782966642000,-154.0,0.00029,2]
[426863204,1782966642000,-800.0,0.00030124,11]
[426863178,1782966642000,-2000.0,0.00029021,21]
[426863179,1782966642000,-504.0,0.0002926,2]
[426863180,1782966642000,-503.0,0.00029273,12]
[426863183,1782966642000,-2000.0,0.00029531,23]
[426863207,1782966642000,-800.0,0.00030124,11]
[426863209,1782966642000,-800.0,0.00030124,11]
[426863202,1782966642000,-9153.05934058,0.00030058,2]
[426863229,1782966642000,-163.87,0.00030411,120]
[426863230,1782966642000,-175.51104745,0.00030411,60]
[426863233,1782966642000,-4688.83712967,0.00030567,2]
[426863232,1782966642000,-190.99906877,0.00030548,2]
[426863234,1782966642000,-350.0,0.00030648,17]
[426863231,1782966642000,-9153.05934058,0.00030532,2]
[426863236,1782966642000,-9153.05934058,0.00030689,2]
[426863235,1782966642000,-3761.75,0.00030667,2]
[426863228,1782966642000,-2000.0,0.0003041,60]
[426863238,1782966642000,-150.0,0.00030841,2]
[426863240,1782966642000,-500.0,0.00030898,7]
[426863239,1782966642000,-9153.05934058,0.00030847,2]
[426863244,1782966642000,-500.0,0.00030898,7]
[426863241,1782966642000,-500.0,0.00030898,7]
[426863245,1782966642000,-38053.57264139,0.00030899,120]
[426863242,1782966642000,-500.0,0.00030898,2]
[426863243,1782966642000,-500.0,0.00030898,7]
[426863246,1782966642000,-556.7567977,0.00030899,120]
[426863237,1782966642000,-2834.53841187,0.00030799,2]
[426863203,1782966642000,-150.0,0.000301,10]
[426863227,1782966642000,-231.17127304,0.0003041,31]
[426863226,1782966642000,-2000.0,0.00030409,31]
[426863206,1782966642000,-800.0,0.00030124,11]
[426863205,1782966642000,-800.0,0.00030124,11]
[426863208,1782966642000,-800.0,0.00030124,11]
[426863210,1782966642000,-800.0,0.00030124,11]
[426863211,1782966642000,-800.0,0.00030124,11]
[426863212,1782966642000,-9000.0,0.00030127,5]
[426863214,1782966642000,-344.1670978,0.00030137,2]
[426863213,1782966642000,-2000.0,0.00030134,90]
[426863225,1782966642000,-9153.05934058,0.00030374,2]
[426863215,1782966642000,-213.22539953,0.00030137,2]
[426863218,1782966642000,-1586.7158,0.00030233,2]
[426863219,1782966642000,-12332.3,0.0003025,2]
[426863222,1782966642000,-2000.0,0.00030344,16]
[426863221,1782966642000,-10000.0,0.00030333,2]
[426863220,1782966642000,-500.0,0.00030333,2]
[426863223,1782966642000,-171.854,0.00030372,26]
[426863224,1782966642000,-1485.433,0.00030372,26]
[426863216,1782966642000,-9153.05934058,0.00030216,2]
[426863217,1782966642000,-4688.83712967,0.00030233,2]
[426863247,1782966643000,-853.16009067,0.00030899,120]
[426863252,1782966643000,-788.0164223,0.00030899,120]
[426863251,1782966643000,-1963.9566741,0.00030899,120]
[426863261,1782966647000,-224.34298027,0.00028782,2]
[426863260,1782966647000,-1000.0,0.00027397,2]
[426863263,1782966647000,-52552.06017577,0.00030899,120]
[426863262,1782966647000,-13011.49,0.00030889,10]
[426863259,1782966647000,-500.0,0.00027397,2]
[426863266,1782966835000,503.0,0.00018,2]
[426863267,1782966889000,200.0,0.0002,2]
[426863269,1782966983000,503.0,0.00018,2]
[426863270,1782967014000,503.0,0.00018,2]
[426863271,1782967073000,503.0,0.00018,2]
[426863272,1782967075000,500.0,0.0002,2]
[426863273,1782967118000,128410.39,0.0002,2]
[426863274,1782967195000,503.0,0.00018,2]
[426863275,1782967199000,500.0,0.0002,2]
[426863276,1782967254000,503.0,0.00018,2]
[426863277,1782967285000,502.0,0.00018,2]
[426863278,1782967421000,500.0,0.00019405,2]
[426863279,1782967422000,166.00774784,0.00019405,2]
[426863280,1782967497000,1540.8622714,0.00013,2]
[426863284,1782967556000,503.0,0.00018,2]
[426863285,1782967573000,6123.52702288,0.00013,5]
[426863286,1782967627000,175.58981979,0.0001305,2]
[426863287,1782967632000,353.13,0.00019281,2]
[426863288,1782967633000,353.13,0.00019958,2]
[426863294,1782967755000,336.31,0.0001962,2]
[426863293,1782967755000,336.31,0.00019281,2]
[426863295,1782967756000,336.31,0.00019958,2]
[426863331,1782967832000,-336.31,0.00020296,2]
[426863328,1782967832000,-503.0,0.00020296,4]
[426863333,1782967832000,-353.13,0.00020635,2]
[426863346,1782967832000,-185.42053177,0.00021818,2]
[426863337,1782967832000,-336.31,0.00020973,2]
[426863348,1782967832000,-150.0,0.00021918,2]
[426863350,1782967832000,-503.0,0.00022593,6]
[426863352,1782967832000,-2536.69182942,0.00023014,2]
[426863356,1782967832000,-265.84703492,0.00023014,2]
[426863340,1782967832000,-3801.12763881,0.00021,2]
[426863342,1782967832000,-353.13,0.00021311,2]
[426863344,1782967832000,-336.31,0.00021311,2]
[426863335,1782967832000,-336.31,0.00020635,2]
[426863359,1782967833000,303.5,0.00019281,2]
[426863360,1782967834000,303.5,0.00019401,2]
[426863363,1782967834000,303.5,0.00019759,2]
[426863362,1782967834000,303.5,0.0001964,2]
[426863361,1782967834000,303.5,0.0001952,2]
[426863364,1782967835000,303.5,0.00019878,2]
[426863365,1782967836000,303.5,0.00019998,2]
[426863377,1782967838000,-5245.95,0.00023014,2]
[426863376,1782967838000,-1352.2,0.00023014,2]
[426863380,1782967838000,-304.99,0.00023014,2]
[426863375,1782967838000,-4457.33113566,0.00023014,2]
[426863373,1782967838000,-303.5,0.00020117,2]
[426863379,1782967838000,-150.0,0.00023014,2]
[426863378,1782967838000,-150.99,0.00023014,2]
[426863374,1782967838000,-303.5,0.00020237,2]
[426863425,1782967839000,-1000.0,0.00024311,2]
[426863424,1782967839000,-150.0,0.00024311,2]
[426863416,1782967839000,-500.0,0.00024173,2]
[426863418,1782967839000,-500.0,0.00024173,2]
[426863414,1782967839000,-500.0,0.00024173,2]
[426863417,1782967839000,-500.0,0.00024173,2]
[426863415,1782967839000,-500.0,0.00024173,2]
[426863408,1782967839000,-500.0,0.00024173,2]
[426863413,1782967839000,-500.0,0.00024173,2]
[426863423,1782967839000,-685.06,0.00024174,2]
[426863419,1782967839000,-500.0,0.00024173,2]
[426863421,1782967839000,-6156.45,0.00024174,2]
[426863433,1782967839000,-307.04008619,0.00024602,2]
[426863422,1782967839000,-1812.43,0.00024174,2]
[426863426,1782967839000,-17712.17,0.00024312,2]
[426863427,1782967839000,-1033.31351895,0.00024569,2]
[426863430,1782967839000,-158.41358019,0.00024601,5]
[426863435,1782967839000,-203.1446067,0.00024602,2]
[426863431,1782967839000,-1001.76690963,0.00024602,2]
[426863429,1782967839000,-5879.99445699,0.00024595,2]
[426863437,1782967839000,-500.0,0.00024602,2]
[426863432,1782967839000,-205.98011873,0.00024602,2]
[426863434,1782967839000,-155.1913058,0.00024602,2]
[426863411,1782967839000,-500.0,0.00024173,2]
[426863436,1782967839000,-290.20658101,0.00024602,2]
[426863420,1782967839000,-500.0,0.00024173,2]
[426863409,1782967839000,-500.0,0.00024173,2]
[426863382,1782967839000,-603.01,0.00023137,2]
[426863412,1782967839000,-500.0,0.00024173,2]
[426863381,1782967839000,-436.9,0.0002309,2]
[426863383,1782967839000,-1910.62,0.00023137,2]
[426863386,1782967839000,-201.34233911,0.00023445,2]
[426863385,1782967839000,-3793.95,0.00023401,2]
[426863392,1782967839000,-155.0,0.00024,2]
[426863387,1782967839000,-152.31789566,0.00023445,2]
[426863390,1782967839000,-226.14405976,0.00023572,2]
[426863389,1782967839000,-183.76657077,0.00023445,2]
[426863384,1782967839000,-168.3,0.00023256,2]
[426863391,1782967839000,-3186.08,0.00023709,2]
[426863388,1782967839000,-156.84932054,0.00023445,2]
[426863393,1782967839000,-192.0,0.00024,2]
[426863407,1782967839000,-500.0,0.00024173,2]
[426863395,1782967839000,-395.74,0.00024084,2]
[426863396,1782967839000,-167.31,0.00024103,2]
[426863400,1782967839000,-284.93061316,0.00024173,2]
[426863397,1782967839000,-200.0,0.00024113,2]
[426863403,1782967839000,-500.0,0.00024173,2]
[426863399,1782967839000,-1852.42,0.00024167,2]
[426863398,1782967839000,-150.0,0.00024164,2]
[426863401,1782967839000,-500.0,0.00024173,2]
[426863402,1782967839000,-500.0,0.00024173,2]
[426863405,1782967839000,-500.0,0.00024173,2]
[426863404,1782967839000,-500.0,0.00024173,2]
[426863410,1782967839000,-168.73552418,0.00024173,2]
[426863406,1782967839000,-500.0,0.00024173,2]
[426863394,1782967839000,-157.0,0.00024,2]
[426863439,1782967839000,-402.68467823,0.00024695,2]
[426863428,1782967839000,-182.85283144,0.00024572,2]
[426863449,1782967839000,-352.83336025,0.00025,3]
[426863464,1782967839000,-192.0,0.00026,2]
[426863469,1782967839000,-383.42927835,0.00026084,2]
[426863472,1782967839000,-735.0662831,0.00026084,2]
[426863475,1782967839000,-160.0,0.00026087,2]
[426863476,1782967839000,-294.97438221,0.000261,2]
[426863478,1782967839000,-152.09702475,0.00026189,2]
[426863477,1782967839000,-5000.0,0.00026112,2]
[426863479,1782967839000,-294.97438221,0.000263,2]
[426863486,1782967839000,-294.97438221,0.000269,2]
[426863483,1782967839000,-761.58947829,0.0002664,2]
[426863480,1782967839000,-5879.99445698,0.00026441,2]
[426863481,1782967839000,-294.97438221,0.000266,2]
[426863466,1782967839000,-157.0,0.00026,2]
[426863485,1782967839000,-150.0,0.00026641,2]
[426863484,1782967839000,-918.83285387,0.0002664,2]
[426863487,1782967839000,-192.0,0.00027,2]
[426863488,1782967839000,-157.0,0.00027,2]
[426863496,1782967839000,-195.36227107,0.00027397,2]
[426863497,1782967839000,-1500.0,0.00027397,2]
[426863489,1782967839000,-294.97438221,0.000271,2]
[426863491,1782967839000,-5879.99445698,0.00027363,2]
[426863493,1782967839000,-151.0,0.00027397,7]
[426863492,1782967839000,-377.36271371,0.00027397,2]
[426863490,1782967839000,-503.0,0.00027185,10]
[426863494,1782967839000,-154.9324923,0.00027397,7]
[426863448,1782967839000,-192.0,0.00025,2]
[426863482,1782967839000,-989.33032513,0.0002664,2]
[426863468,1782967839000,-194.99720221,0.00026084,2]
[426863495,1782967839000,-248.692853,0.00027397,7]
[426863470,1782967839000,-609.27158263,0.00026084,2]
[426863438,1782967839000,-183811.6248,0.00024603,120]
[426863441,1782967839000,-313.69864108,0.00024695,2]
[426863442,1782967839000,-367.53314155,0.00024695,2]
[426863444,1782967839000,-910.87,0.00024919,2]
[426863440,1782967839000,-304.63579132,0.00024695,2]
[426863443,1782967839000,-503.0,0.00024889,8]
[426863446,1782967839000,-326.0,0.00025,2]
[426863467,1782967839000,-805.36935645,0.00026084,2]
[426863445,1782967839000,-152.09702484,0.00024967,2]
[426863450,1782967839000,-157.0,0.00025,2]
[426863453,1782967839000,-200.0,0.00025414,2]
[426863458,1782967839000,-604.02701734,0.00025528,2]
[426863457,1782967839000,-181.0,0.0002552,2]
[426863447,1782967839000,-158.0,0.00025,2]
[426863451,1782967839000,-150.0,0.00025373,2]
[426863471,1782967839000,-627.39728215,0.00026084,2]
[426863452,1782967839000,-152.0,0.00025396,3]
[426863465,1782967839000,-1978.43445536,0.00026,5]
[426863462,1782967839000,-24900.82914312,0.000258,2]
[426863474,1782967839000,-216.69616408,0.00026087,2]
[426863473,1782967839000,-160.0,0.00026087,2]
[426863463,1782967839000,-436.9,0.00025976,2]
[426863461,1782967839000,-551.29971232,0.00025528,2]
[426863456,1782967839000,-5879.99445698,0.00025518,2]
[426863455,1782967839000,-517.16,0.00025516,2]
[426863460,1782967839000,-470.54796162,0.00025528,2]
[426863454,1782967839000,-1000.0,0.00025414,120]
[426863459,1782967839000,-456.95368698,0.00025528,2]
[426863531,1782967840000,-162.41,0.00027655,30]
[426863539,1782967840000,-166.98,0.00027929,2]
[426863537,1782967840000,-361.0,0.0002784,2]
[426863538,1782967840000,-181.0,0.0002784,2]
[426863535,1782967840000,-5000.0,0.00027782,7]
[426863530,1782967840000,-155.38,0.00027655,30]
[426863536,1782967840000,-195.36227107,0.00027819,2]
[426863534,1782967840000,-161.41,0.00027674,30]
[426863529,1782967840000,-159.45,0.0002765,30]
[426863532,1782967840000,-159.46,0.0002766,30]
[426863533,1782967840000,-161.02,0.00027664,30]
[426863540,1782967840000,-1589.0,0.00027948,30]
[426863549,1782967840000,-163.0,0.00028,2]
[426863547,1782967840000,-643.0,0.00028,2]
[426863546,1782967840000,-160.0,0.00028,2]
[426863544,1782967840000,-192.0,0.00028,2]
[426863543,1782967840000,-10148.80963007,0.00028,5]
[426863545,1782967840000,-152.53495072,0.00028,60]
[426863542,1782967840000,-150.0,0.00027973,2]
[426863548,1782967840000,-22500.0,0.00028,2]
[426863550,1782967840000,-166.57,0.00028029,2]
[426863553,1782967840000,-159.45,0.000281,7]
[426863557,1782967840000,-500.0,0.00028174,2]
[426863552,1782967840000,-167.31,0.00028081,2]
[426863526,1782967840000,-704.24,0.00027503,2]
[426863541,1782967840000,-891.33082771,0.00027953,2]
[426863528,1782967840000,-154.97,0.00027647,30]
[426863512,1782967840000,-513.57521327,0.00027397,2]
[426863523,1782967840000,-152.09702475,0.00027411,2]
[426863554,1782967840000,-159.46,0.00028106,7]
[426863498,1782967840000,-669.0,0.00027397,5]
[426863499,1782967840000,-671.0,0.00027397,5]
[426863500,1782967840000,-151.0,0.00027397,5]
[426863502,1782967840000,-668.0,0.00027397,5]
[426863504,1782967840000,-671.0,0.00027397,5]
[426863506,1782967840000,-300.0,0.00027397,2]
[426863507,1782967840000,-17289.37,0.00027397,10]
[426863503,1782967840000,-680.0,0.00027397,5]
[426863505,1782967840000,-683.0,0.00027397,5]
[426863501,1782967840000,-683.0,0.00027397,5]
[426863510,1782967840000,-415.2544763,0.00027397,2]
[426863508,1782967840000,-14407.8,0.00027397,10]
[426863511,1782967840000,-256.78760663,0.00027397,2]
[426863514,1782967840000,-534.79849663,0.00027397,2]
[426863524,1782967840000,-10458.28714896,0.00027456,2]
[426863525,1782967840000,-500.0,0.000275,7]
[426863515,1782967840000,-356.53233109,0.00027397,2]
[426863513,1782967840000,-178.26616554,0.00027397,2]
[426863516,1782967840000,-713.06466217,0.00027397,2]
[426863518,1782967840000,-500.0,0.00027399,7]
[426863520,1782967840000,-513.77,0.00027399,7]
[426863521,1782967840000,-1589.0,0.000274,30]
[426863517,1782967840000,-500.0,0.00027399,7]
[426863519,1782967840000,-513.77,0.00027399,7]
[426863527,1782967840000,-195.36227107,0.00027608,2]
[426863559,1782967840000,-500.0,0.00028174,2]
[426863558,1782967840000,-500.0,0.00028174,2]
[426863612,1782967840000,-800.0,0.00028174,30]
[426863585,1782967840000,-200.0,0.00028174,2]
[426863591,1782967840000,-200.0,0.00028174,2]
[426863584,1782967840000,-200.0,0.00028174,2]
[426863592,1782967840000,-200.0,0.00028174,2]
[426863588,1782967840000,-200.0,0.00028174,2]
[426863590,1782967840000,-200.0,0.00028174,2]
[426863594,1782967840000,-200.0,0.00028174,2]
[426863593,1782967840000,-200.0,0.00028174,2]
[426863597,1782967840000,-200.0,0.00028174,2]
[426863596,1782967840000,-200.0,0.00028174,2]
[426863595,1782967840000,-200.0,0.00028174,2]
[426863599,1782967840000,-200.0,0.00028174,2]
[426863598,1782967840000,-200.0,0.00028174,2]
[426863602,1782967840000,-200.0,0.00028174,2]
[426863601,1782967840000,-200.0,0.00028174,2]
[426863600,1782967840000,-200.0,0.00028174,2]
[426863603,1782967840000,-200.0,0.00028174,2]
[426863606,1782967840000,-200.0,0.00028174,2]
[426863607,1782967840000,-200.0,0.00028174,2]
[426863608,1782967840000,-200.0,0.00028174,2]
[426863605,1782967840000,-200.0,0.00028174,2]
[426863609,1782967840000,-200.0,0.00028174,2]
[426863611,1782967840000,-197.0,0.00028174,2]
[426863610,1782967840000,-200.0,0.00028174,2]
[426863555,1782967840000,-159.46,0.00028112,7]
[426863587,1782967840000,-200.0,0.00028174,2]
[426863586,1782967840000,-200.0,0.00028174,2]
[426863604,1782967840000,-200.0,0.00028174,2]
[426863582,1782967840000,-200.0,0.00028174,2]
[426863589,1782967840000,-200.0,0.00028174,2]
[426863556,1782967840000,-152.0,0.00028122,4]
[426863561,1782967840000,-500.0,0.00028174,2]
[426863560,1782967840000,-500.0,0.00028174,2]
[426863569,1782967840000,-500.0,0.00028174,2]
[426863562,1782967840000,-500.0,0.00028174,2]
[426863570,1782967840000,-500.0,0.00028174,2]
[426863563,1782967840000,-500.0,0.00028174,2]
[426863564,1782967840000,-500.0,0.00028174,2]
[426863565,1782967840000,-500.0,0.00028174,2]
[426863566,1782967840000,-500.0,0.00028174,2]
[426863568,1782967840000,-500.0,0.00028174,2]
[426863567,1782967840000,-500.0,0.00028174,2]
[426863551,1782967840000,-195.36227107,0.0002803,2]
[426863574,1782967840000,-200.0,0.00028174,2]
[426863573,1782967840000,-610.0,0.00028174,2]
[426863577,1782967840000,-200.0,0.00028174,2]
[426863580,1782967840000,-200.0,0.00028174,2]
[426863575,1782967840000,-200.0,0.00028174,2]
[426863576,1782967840000,-200.0,0.00028174,2]
[426863581,1782967840000,-200.0,0.00028174,2]
[426863578,1782967840000,-200.0,0.00028174,2]
[426863571,1782967840000,-500.0,0.00028174,2]
[426863579,1782967840000,-200.0,0.00028174,2]
[426863572,1782967840000,-500.0,0.00028174,2]
[426863583,1782967840000,-200.0,0.00028174,2]
[426863645,1782967841000,-1000.0,0.00028586,2]
[426863642,1782967841000,-151.0,0.00028581,3]
[426863651,1782967841000,-152.09702475,0.00028633,2]
[426863650,1782967841000,-1000.0,0.00028618,2]
[426863649,1782967841000,-1000.0,0.00028602,2]
[426863641,1782967841000,-151.0,0.00028581,3]
[426863647,1782967841000,-76028.18215986,0.000286,7]
[426863646,1782967841000,-19191.28538262,0.000286,2]
[426863643,1782967841000,-152.0,0.00028581,3]
[426863644,1782967841000,-152.0,0.00028581,3]
[426863652,1782967841000,-1000.0,0.00028634,2]
[426863648,1782967841000,-15730.62276641,0.000286,7]
[426863655,1782967841000,-150.0,0.00028649,2]
[426863657,1782967841000,-237.49225896,0.0002865,2]
[426863660,1782967841000,-1000.0,0.00028681,2]
[426863658,1782967841000,-195.36227107,0.00028662,2]
[426863656,1782967841000,-762.50774104,0.0002865,2]
[426863659,1782967841000,-1000.0,0.00028665,2]
[426863654,1782967841000,-216.0,0.00028649,2]
[426863661,1782967841000,-1000.0,0.00028697,2]
[426863673,1782967841000,-1000.0,0.00028841,2]
[426863663,1782967841000,-1000.0,0.00028729,2]
[426863664,1782967841000,-1000.0,0.00028745,2]
[426863662,1782967841000,-1000.0,0.00028713,2]
[426863665,1782967841000,-1000.0,0.00028761,2]
[426863653,1782967841000,-1348.22543929,0.00028646,15]
[426863640,1782967841000,-1000.0,0.0002857,2]
[426863666,1782967841000,-1000.0,0.00028767,2]
[426863639,1782967841000,-1000.0,0.00028554,2]
[426863616,1782967841000,-5879.99445698,0.00028286,2]
[426863615,1782967841000,-195.36227107,0.0002824,2]
[426863614,1782967841000,-586.0,0.00028174,30]
[426863613,1782967841000,-800.0,0.00028174,30]
[426863617,1782967841000,-1000.0,0.00028315,2]
[426863618,1782967841000,-154.97,0.00028323,7]
[426863619,1782967841000,-155.38,0.00028327,7]
[426863621,1782967841000,-155.43,0.00028332,7]
[426863622,1782967841000,-1000.0,0.00028347,2]
[426863629,1782967841000,-195.36227107,0.00028451,2]
[426863628,1782967841000,-1000.0,0.00028442,2]
[426863620,1782967841000,-1000.0,0.00028331,2]
[426863625,1782967841000,-1000.0,0.00028395,2]
[426863624,1782967841000,-1000.0,0.00028379,2]
[426863626,1782967841000,-1000.0,0.00028411,2]
[426863627,1782967841000,-1000.0,0.00028427,2]
[426863623,1782967841000,-1000.0,0.00028363,2]
[426863630,1782967841000,-1000.0,0.00028458,2]
[426863631,1782967841000,-150.24006919,0.00028463,2]
[426863635,1782967841000,-1589.0,0.00028496,30]
[426863636,1782967841000,-1000.0,0.00028506,2]
[426863633,1782967841000,-10377.1294181,0.00028481,2]
[426863632,1782967841000,-1000.0,0.00028474,2]
[426863637,1782967841000,-1000.0,0.00028522,2]
[426863638,1782967841000,-1000.0,0.00028538,2]
[426863634,1782967841000,-1000.0,0.0002849,2]
[426863667,1782967841000,-229.17760616,0.00028774,7]
[426863723,1782967841000,-10390.71698618,0.00029,2]
[426863670,1782967841000,-1000.0,0.000288,2]
[426863707,1782967841000,-160.89,0.00029,2]
[426863703,1782967841000,-160.89,0.00029,2]
[426863705,1782967841000,-160.89,0.00029,2]
[426863702,1782967841000,-160.89,0.00029,2]
[426863697,1782967841000,-500.0,0.00029,2]
[426863701,1782967841000,-1018.43,0.00029,2]
[426863706,1782967841000,-160.89,0.00029,2]
[426863704,1782967841000,-160.89,0.00029,2]
[426863708,1782967841000,-160.89,0.00029,2]
[426863710,1782967841000,-160.89,0.00029,2]
[426863711,1782967841000,-160.89,0.00029,2]
[426863709,1782967841000,-160.89,0.00029,2]
[426863714,1782967841000,-223.89550082,0.00029,2]
[426863712,1782967841000,-1336.84686807,0.00029,2]
[426863713,1782967841000,-1000.0,0.00029,2]
[426863718,1782967841000,-42645.33001814,0.00029,2]
[426863716,1782967841000,-223.07,0.00029,7]
[426863715,1782967841000,-424.2443707,0.00029,2]
[426863719,1782967841000,-5368.23442625,0.00029,2]
[426863720,1782967841000,-10106.80895477,0.00029,5]
[426863721,1782967841000,-207.0,0.00029,2]
[426863722,1782967841000,-32540.0,0.00029,2]
[426863724,1782967841000,-1005.21293862,0.00029,2]
[426863725,1782967841000,-999.10398624,0.00029,2]
[426863668,1782967841000,-1000.0,0.00028777,2]
[426863699,1782967841000,-500.0,0.00029,2]
[426863700,1782967841000,-517.18,0.00029,2]
[426863717,1782967841000,-156.15,0.00029,7]
[426863692,1782967841000,-80680.29552985,0.0002899,2]
[426863698,1782967841000,-500.0,0.00029,2]
[426863672,1782967841000,-1000.0,0.00028825,2]
[426863669,1782967841000,-1000.0,0.00028793,2]
[426863674,1782967841000,-1000.0,0.00028857,2]
[426863683,1782967841000,-1000.0,0.00028936,2]
[426863679,1782967841000,-162.55,0.00028879,120]
[426863676,1782967841000,-158.88,0.00028863,7]
[426863684,1782967841000,-1000.0,0.00028952,2]
[426863677,1782967841000,-195.36227107,0.00028872,2]
[426863682,1782967841000,-1000.0,0.0002892,2]
[426863678,1782967841000,-1000.0,0.00028873,2]
[426863685,1782967841000,-1000.0,0.00028968,2]
[426863681,1782967841000,-1000.0,0.00028904,2]
[426863671,1782967841000,-1000.0,0.00028809,2]
[426863695,1782967841000,-799.37489077,0.00029,30]
[426863680,1782967841000,-1000.0,0.00028888,2]
[426863694,1782967841000,-799.0,0.00029,30]
[426863691,1782967841000,-1000.0,0.00028984,2]
[426863690,1782967841000,-6343.35737147,0.00028973,2]
[426863693,1782967841000,-319.14,0.00029,2]
[426863696,1782967841000,-1000.0,0.00029,2]
[426863687,1782967841000,-73125.12741403,0.0002897,6]
[426863688,1782967841000,-185.0,0.00028971,2]
[426863686,1782967841000,-500.0,0.00028969,2]
[426863675,1782967841000,-436.9,0.00028862,120]
[426863689,1782967841000,-10377.12941801,0.00028972,2]
[426863769,1782967842000,-2000.0,0.0002902,21]
[426863772,1782967842000,-509.82,0.000291,2]
[426863765,1782967842000,-154.0,0.00029,4]
[426863770,1782967842000,-1589.0,0.00029044,30]
[426863761,1782967842000,-154.0,0.00029,4]
[426863756,1782967842000,-154.0,0.00029,4]
[426863759,1782967842000,-154.0,0.00029,4]
[426863758,1782967842000,-154.0,0.00029,4]
[426863755,1782967842000,-154.0,0.00029,4]
[426863771,1782967842000,-195.36227107,0.00029083,2]
[426863754,1782967842000,-154.0,0.00029,4]
[426863757,1782967842000,-154.0,0.00029,4]
[426863762,1782967842000,-154.0,0.00029,4]
[426863775,1782967842000,-509.82,0.000291,2]
[426863763,1782967842000,-154.0,0.00029,4]
[426863764,1782967842000,-154.0,0.00029,4]
[426863768,1782967842000,-154.0,0.00029,4]
[426863773,1782967842000,-509.82,0.000291,2]
[426863767,1782967842000,-154.0,0.00029,4]
[426863774,1782967842000,-509.82,0.000291,2]
[426863785,1782967842000,-509.82,0.000291,2]
[426863786,1782967842000,-509.82,0.000291,2]
[426863777,1782967842000,-509.82,0.000291,2]
[426863779,1782967842000,-509.82,0.000291,2]
[426863776,1782967842000,-509.82,0.000291,2]
[426863778,1782967842000,-509.82,0.000291,2]
[426863766,1782967842000,-154.0,0.00029,4]
[426863753,1782967842000,-154.0,0.00029,4]
[426863727,1782967842000,-2331.85297312,0.00029,2]
[426863752,1782967842000,-154.0,0.00029,4]
[426863784,1782967842000,-509.82,0.000291,2]
[426863726,1782967842000,-475.09776278,0.00029,2]
[426863732,1782967842000,-158.0,0.00029,4]
[426863728,1782967842000,-13031.79404672,0.00029,2]
[426863731,1782967842000,-158.88,0.00029,7]
[426863730,1782967842000,-529.52797131,0.00029,2]
[426863734,1782967842000,-155.0,0.00029,4]
[426863729,1782967842000,-1831.20525285,0.00029,2]
[426863733,1782967842000,-155.0,0.00029,4]
[426863735,1782967842000,-155.0,0.00029,4]